[Event "European Women Blitz-ch 2024"]
[Site "Monaco"]
[Date "2025.01.10"]
[Round "7.18"]
[White "Kazarian, Anna-Maja"]
[Black "Garcia Martin, Marta"]
[Result "0-1"]
[Annotator "TA"]
[ECO "B08"]
[WhiteElo "2206"]
[BlackElo "2323"]
[PlyCount "84"]
[EventDate "2025.01.06"]
[EventType "swiss"]
[EventCountry "MNC"]
[SourceTitle "playchess.com"]
[Source "ChessBase"]
[SourceQuality "1"]
[TimeControl "180+2"]

{[%evp 16,84,6,-19,-13,-46,-40,-50,-18,-17,-14,-30,26,-139,-4,-2,-35,-25,-29,-22,-23,-49,-29,-30,-41,-29,-41,-36,-2,-1,0,-108,-93,-125,-115,-119,-122,-114,-113,-149,-168,-191,-191,-199,-187,-197,-204,-261,-51,-158,-167,-172,-138,-130,-126,-184,-151,-139,-117,-191,-116,-2122,-2167,-1617,-1493,-29949,-29943,-29940,-12847,-6465,-6378]} 1. e4 {[%emt 0:00:01]} g6 {[%emt 0:00:01]} 2. d4 {[%emt 0:00:01]} Bg7 {[%emt 0:00:01]} 3. Nf3 {[%emt 0:00:01]} d6 {[%emt 0:00:01]} 4. Bc4 {[%emt 0:00:01]} Nf6 {[%emt 0:00:02]} 5. Qe2 {[%emt 0:00:07]} O-O {[%emt 0:00:02]} 6. Nc3 {[%emt 0:00:12]} Bg4 {[%emt 0:00:51]} 7. h3 {[%emt 0:00:26]} Bxf3 {[%emt 0:00:02]} 8. Qxf3 {[%emt 0:00:01]} Nc6 {[%emt 0:00:03]} 9. Be3 {[%emt 0:00:01]} (9. Qd3 $5) 9... e5 {[%emt 0:00:50]} 10. dxe5 {[%emt 0:00:09]} Nxe5 {[%emt 0:00:01]} 11. Qe2 {[%emt 0:00:01]} Nxc4 {[%emt 0:00:02]} (11... Nxe4 $5 12. Nxe4 Nxc4 $15) 12. Qxc4 {[%emt 0:00:01]} Re8 {[%emt 0:00:01][%cal Of6e4]} 13. O-O-O {[%emt 0:00:08]} Qd7 {[%emt 0:00:24]} (13... a6 $142) 14. f4 $2 {[%emt 0:00:11]} (14. f3 $11) 14... Qc6 {[%emt 0:00:22]} (14... Nxe4 $1 $17 15. Nxe4 Qe7) 15. Qxc6 $11 {[%emt 0:00:08]} bxc6 {[%emt 0:00:01]} 16. e5 {[%emt 0:00:07]} dxe5 {[%emt 0:00:25]} 17. fxe5 {[%emt 0:00:01]} Rxe5 {[%emt 0:00:07]} 18. Bd4 {[%emt 0:00:14]} Rf5 {[%emt 0:00:04]} 19. g4 {[%emt 0:00:05]} Rf3 {[%emt 0:00:02]} 20. Rhf1 {[%emt 0:00:37]} Rxf1 {[%emt 0:00:03]} 21. Rxf1 {[%emt 0:00:01]} Nd5 {[%emt 0:00:03]} 22. Bxg7 {[%emt 0:00:07]} Kxg7 {[%emt 0:00:01][%mdl 4096] Endgame KRN-KRN. Black is a pawn up.} 23. Ne4 {[%emt 0:00:05]} (23. Rf3 $11) 23... Re8 $17 {[%emt 0:00:01]} 24. Ng5 {[%emt 0:00:08]} f6 {[%emt 0:00:10]} 25. Nf3 {[%emt 0:00:01]} Nf4 {[%emt 0:00:02]} 26. h4 {[%emt 0:00:03]} c5 {[%emt 0:00:02] Dodges Nd4} 27. Nd2 {[%emt 0:00:28]} Ng2 {[%emt 0:00:03]} 28. h5 {[%emt 0:00:04]} Ne3 {[%emt 0:00:05][%csl LRf1,LRg4]} 29. Re1 {[%emt 0:00:05] Strongly threatening Nc4.} Kf7 $1 {[%emt 0:00:01]} 30. hxg6+ {[%emt 0:00:03]} hxg6 {[%emt 0:00:01]} (30... Kxg6 $2 31. Nc4 $18) 31. Rg1 {[%emt 0:00:09]} Rd8 $2 {[%emt 0:00:05]} ({Better is} 31... Nxg4 $1 $19 {...f5 would now be deadly.} 32. Nb3 Ne5 (32... f5 $2 33. Nxc5 g5 34. a4 $19) 33. Nxc5 a5) 32. c3 {[%emt 0:00:04]} (32. Rg3 $15 Re8 33. c4) 32... Rh8 {[%emt 0:00:03] Black is much more active.} 33. Ne4 {[%emt 0:00:00]} c4 {[%emt 0:00:02]} 34. Kd2 {[%emt 0:00:09]} Nd5 $1 {[%emt 0:00:00]} 35. Rg2 {[%emt 0:00:04] Against Rh2} (35. Rd1 $17) 35... Re8 {[%emt 0:00:01]} 36. Nc5 {[%emt 0:00:03]} Re5 {[%emt 0:00:03]} 37. Rf2 {[%emt 0:00:03] [#] Prevents Nf4} (37. Re2 $17) 37... Nxc3 {[%emt 0:00:03]} 38. Nd7 $2 {[%emt 0:00:03][%mdl 8192]} (38. Kxc3 $17 Rxc5 39. Re2) 38... Ne4+ $19 {[%emt 0:00:01]} 39. Ke3 {[%emt 0:00:01]} Nxf2+ {[%emt 0:00:01]} 40. Nxe5+ {[%emt 0:00:01]} fxe5 {[%emt 0:00:02]} 41. Kxf2 {[%emt 0:00:01]} Kf6 {[%emt 0:00:02]} (41... Ke6 $142 42. Ke3 Kd5 43. b3 cxb3 44. axb3 c5 45. g5 e4 46. Ke2 Kd4 47. Kf2 e3+ 48. Kf3 Kd3 49. Kf4 e2 50. Ke5 e1=Q+ (50... e1=R+ $2 51. Kf6 $19) 51. Kd6 Kd4 52. b4 cxb4 53. Kc7 b3 54. Kd8 b2 55. Kd7 b1=Q (55... b1=R {gets mated.} 56. Kc8 Qg3 57. Kd8 Rb7 58. Ke8 Qb8#) 56. Kc8 Qe8+ 57. Kc7 Qbb8#) 42. Kf3 {[%emt 0:00:03]} Kg5 {[%emt 0:00:03]} 0-1

[Event "European Women Blitz-ch 2024"]
[Site "Monaco"]
[Date "2025.01.10"]
[Round "8.1"]
[White "Maltsevskaya, Aleksandra"]
[Black "Ushenina, Anna"]
[Result "1-0"]
[Annotator "TA"]
[ECO "B42"]
[WhiteElo "2368"]
[BlackElo "2418"]
[PlyCount "85"]
[EventDate "2025.01.06"]
[EventType "swiss"]
[EventCountry "MNC"]
[SourceTitle "playchess.com"]
[Source "ChessBase"]
[SourceQuality "1"]
[TimeControl "180+2"]

{[%evp 22,85,27,27,39,0,0,0,16,0,13,0,0,-20,13,0,0,9,60,19,25,7,91,87,100,91,145,135,114,139,145,137,139,134,139,133,145,154,156,158,159,116,139,139,168,144,138,95,138,120,131,75,77,0,129,137,172,129,138,121,121,120,127,126,125,120]} 1. e4 {[%emt 0:00:02]} c5 {[%emt 0:00:00]} 2. Nf3 {[%emt 0:00:02]} e6 {[%emt 0:00:01]} 3. d4 {[%emt 0:00:01]} cxd4 {[%emt 0:00:01]} 4. Nxd4 {[%emt 0:00:01]} a6 {[%emt 0:00:00]} 5. Bd3 {[%emt 0:00:05]} Bc5 {[%emt 0:00:02]} 6. Nb3 {[%emt 0:00:01]} Ba7 {[%emt 0:00:01]} 7. c4 {[%emt 0:00:03]} Nc6 {[%emt 0:00:06]} 8. Nc3 {[%emt 0:00:01]} d6 {[%emt 0:00:04]} 9. O-O {[%emt 0:00:30]} Nf6 {[%emt 0:00:02]} 10. Qe2 {[%emt 0:00:05]} O-O {[%emt 0:00:05]} 11. Be3 {[%emt 0:00:03]} Bxe3 {[%emt 0:00:06]} 12. Qxe3 {[%emt 0:00:01]} e5 {[%emt 0:00:09]} 13. Nd5 {[%emt 0:00:37]} Be6 {[%emt 0:00:13]} 14. Rad1 {[%emt 0:00:20]} Nd7 {[%emt 0:00:33]} 15. h3 {[%emt 0:00:27]} Qb8 {[%emt 0:00:14]} 16. f4 {[%emt 0:00:14]} exf4 {[%emt 0:01:23]} 17. Rxf4 {[%emt 0:00:08]} Qa7 {[%emt 0:00:06]} 18. Qxa7 {[%emt 0:00:02]} Rxa7 {[%emt 0:00:01]} 19. Be2 {[%emt 0:00:12]} Nde5 {[%emt 0:00:05]} (19... Rd8 $11) 20. c5 {[%emt 0:00:06]} dxc5 {[%emt 0:00:10]} 21. Nxc5 {[%emt 0:00:01]} Raa8 {[%emt 0:00:16]} (21... b5 $1 $11 {remains equal.}) 22. Nc7 $36 {[%emt 0:00:11][%mdl 2048] White is in control. White has more active pieces.} (22. Nxb7 Rfb8 23. Nc5 Rxb2 24. Bxa6 Bxd5 25. exd5 Nb4) 22... Rad8 {[%emt 0:00:05]} 23. N7xe6 {[%emt 0:00:02]} fxe6 {[%emt 0:00:02]} (23... Rxd1+ $142 24. Bxd1 fxe6 25. Rxf8+ (25. Nxe6 Rxf4 26. Nxf4 Kf7 $16) 25... Kxf8) 24. Rxf8+ {[%emt 0:00:04]} Rxf8 {[%emt 0:00:01]} 25. Nxe6 {[%emt 0:00:01]} Re8 {[%emt 0:00:01]} 26. Nc5 $1 {[%emt 0:00:03]} Re7 {[%emt 0:00:00]} 27. Rd2 {[%emt 0:00:10]} g6 {[%emt 0:00:01]} 28. Bd1 {[%emt 0:00:02]} Kg7 {[%emt 0:00:01]} 29. Bb3 {[%emt 0:00:01] Repels Nc4} Kh6 {[%emt 0:00:04]} 30. Bd5 {[%emt 0:00:02]} Nd8 {[%emt 0:00:04]} 31. Rf2 {[%emt 0:00:07]} a5 {[%emt 0:00:02]} 32. Nb3 {[%emt 0:00:05]} b6 {[%emt 0:00:01]} 33. Nd4 {[%emt 0:00:02]} Nd7 {[%emt 0:00:08] Repels Rf6} 34. Re2 {[%emt 0:00:09]} Kg7 {[%emt 0:00:00]} 35. a3 {[%emt 0:00:03]} Nf6 {[%emt 0:00:00] [#]} 36. Ba8 {[%emt 0:00:05]} (36. Kf2 $142 $1) 36... Ra7 {[%emt 0:00:00]} 37. Bd5 {[%emt 0:00:02]} (37. Bc6 $142) 37... Re7 {[%emt 0:00:01] [#]} 38. Kf2 $1 {[%emt 0:00:02]} Nf7 {[%emt 0:00:02]} 39. Bxf7 {[%emt 0:00:02]} Nxe4+ {[%emt 0:00:04]} 40. Kf3 {[%emt 0:00:03]} Ng5+ {[%emt 0:00:00]} 41. Kf4 {[%emt 0:00:01]} Rxe2 {[%emt 0:00:02]} 42. Nxe2 {[%emt 0:00:02]} (42. Kxg5 $2 {is the wrong capture.} Rxg2+ (42... Rxb2 $2 43. Bd5 $19) 43. Kf4 Kxf7 $19) 42... Nxf7 {[%emt 0:00:01]} 43. Ke4 {[%emt 0:00:01]} 1-0

[Event "European Women Blitz-ch 2024"]
[Site "Monaco"]
[Date "2025.01.10"]
[Round "8.2"]
[White "Kosteniuk, Alexandra"]
[Black "Zhukova, Natalia"]
[Result "1-0"]
[Annotator "TA"]
[ECO "C45"]
[WhiteElo "2484"]
[BlackElo "2306"]
[PlyCount "65"]
[EventDate "2025.01.06"]
[EventType "swiss"]
[EventCountry "MNC"]
[SourceTitle "playchess.com"]
[Source "ChessBase"]
[SourceQuality "1"]
[TimeControl "180+2"]

{[%evp 17,65,8,0,0,0,0,12,5,3,12,17,25,40,46,58,43,62,66,118,95,109,104,166,163,166,104,120,114,139,110,135,123,195,163,197,207,199,207,245,242,333,325,323,316,833,847,964,934,866,858]} 1. e4 {[%emt 0:00:01]} e5 {[%emt 0:00:01]} 2. Nf3 {[%emt 0:00:01]} Nc6 {[%emt 0:00:01]} 3. d4 {[%emt 0:00:01]} exd4 {[%emt 0:00:02]} 4. Nxd4 {[%emt 0:00:01]} Nf6 {[%emt 0:00:01]} 5. Nxc6 {[%emt 0:00:01]} bxc6 {[%emt 0:00:01]} 6. Bd3 {[%emt 0:00:01]} d5 {[%emt 0:00:11]} 7. exd5 {[%emt 0:00:01]} cxd5 {[%emt 0:00:01]} 8. O-O {[%emt 0:00:02]} Be7 {[%emt 0:00:03]} 9. c4 {[%emt 0:00:01]} O-O {[%emt 0:00:10]} 10. cxd5 {[%emt 0:00:02]} Nxd5 {[%emt 0:00:08]} 11. Qf3 {[%emt 0:00:01]} c6 {[%emt 0:00:14]} 12. Rd1 {[%emt 0:00:04]} Qb6 {[%emt 0:00:26]} 13. Na3 {[%emt 0:00:07]} Bxa3 {[%emt 0:00:10]} 14. bxa3 {[%emt 0:00:01]} Be6 {[%emt 0:00:14]} 15. Rb1 $40 {[%emt 0:00:02][%mdl 128] Black needs to defend precisely.} Qa5 {[%emt 0:00:12]} 16. Bb2 {[%emt 0:00:01] This pair of bishops is nice.} Rfe8 {[%emt 0:00:35]} 17. Qe4 {[%emt 0:00:26]} g6 {[%emt 0:00:10]} (17... f5 $14 18. Qd4 Nf6) 18. Qd4 $16 {[%emt 0:00:07]} f6 {[%emt 0:00:03]} 19. Rbc1 {[%emt 0:00:03]} Rab8 {[%emt 0:00:20]} (19... Qb6 $16) 20. Rxc6 $18 {[%emt 0:00:24]} Bf7 {[%emt 0:00:02]} 21. Rcc1 {[%emt 0:00:19]} (21. Bf1 $18) 21... Qb6 {[%emt 0:00:11]} 22. Qxb6 {[%emt 0:00:06]} axb6 {[%emt 0:00:18]} 23. g3 {[%emt 0:00:02]} b5 {[%emt 0:00:03]} 24. Rc5 {[%emt 0:00:09]} b4 {[%emt 0:00:08]} (24... Rbc8 $16 25. Rxc8 (25. Rxb5 Nc3 $16) 25... Rxc8 26. Bxb5 Rb8) 25. a4 {[%emt 0:00:12][%cal Ba3a4,Ba4a5,Ba5a6,Ba6a7][%mdl 32]} Rec8 {[%emt 0:00:02]} 26. Rxc8+ {[%emt 0:00:14]} Rxc8 {[%emt 0:00:01]} 27. a5 {[%emt 0:00:07]} Ra8 {[%emt 0:00:02]} 28. a6 {[%emt 0:00:02]} Nc3 {[%emt 0:00:03] Wards off Be4} 29. Bxc3 {[%emt 0:00:05]} bxc3 {[%emt 0:00:01]} 30. Rc1 {[%emt 0:00:00]} Rc8 $2 {[%emt 0:00:03]} (30... Bxa2 31. Rxc3 Ra7) 31. Be4 {[%emt 0:00:07]} Rc7 {[%emt 0:00:02]} 32. Bb7 {[%emt 0:00:03] Black must now prevent a7.} Rc5 {[%emt 0:00:04]} 33. a7 {[%emt 0:00:02]} 1-0

[Event "European Women Blitz-ch 2024"]
[Site "Monaco"]
[Date "2025.01.10"]
[Round "8.3"]
[White "Paehtz, Elisabeth"]
[Black "Arabidze, Meri"]
[Result "1/2-1/2"]
[Annotator "TA"]
[ECO "D02"]
[WhiteElo "2428"]
[BlackElo "2457"]
[PlyCount "96"]
[EventDate "2025.01.06"]
[EventType "swiss"]
[EventCountry "MNC"]
[SourceTitle "playchess.com"]
[Source "ChessBase"]
[SourceQuality "1"]
[TimeControl "180+2"]

{[%evp 11,96,0,18,16,21,17,16,13,19,19,9,0,21,23,56,-16,0,-35,11,0,16,-18,0,-18,-10,0,5,-8,-25,-45,-45,-39,-56,-60,-17,-60,16,-20,0,9,3,12,0,8,13,14,22,10,8,16,9,6,19,0,0,0,11,0,0,0,0,0,0,0,0,-36,-11,-2,-2,-81,-88,-139,-93,-83,-4,-23,0,0,0,-51,0,0,0,-45,0,0,0]} 1. d4 {[%emt 0:00:01]} d5 {[%emt 0:00:01]} 2. Nf3 {[%emt 0:00:02]} Nf6 {[%emt 0:00:01]} 3. c3 {[%emt 0:00:00]} e6 {[%emt 0:00:06]} 4. Bf4 {[%emt 0:00:02]} c5 {[%emt 0:00:01]} 5. e3 {[%emt 0:00:01]} Nc6 {[%emt 0:00:01]} 6. Nbd2 {[%emt 0:00:01]} cxd4 {[%emt 0:00:01]} 7. exd4 {[%emt 0:00:01]} Nh5 {[%emt 0:00:01]} 8. Bg5 {[%emt 0:00:09]} f6 {[%emt 0:00:06]} 9. Be3 {[%emt 0:00:01]} Bd6 {[%emt 0:00:01]} 10. g3 {[%emt 0:00:08]} O-O {[%emt 0:00:09]} 11. Bg2 {[%emt 0:00:17]} Bd7 {[%emt 0:00:30]} 12. O-O {[%emt 0:00:04]} f5 {[%emt 0:00:11]} 13. Bg5 {[%emt 0:00:02]} (13. Ne5 $1 $14 Be8 14. Ndf3) 13... Qe8 $11 {[%emt 0:00:05]} 14. Nb3 {[%emt 0:00:25][%cal Oc3c4]} h6 {[%emt 0:00:16]} (14... f4 $1 $15 {is more appropriate.}) 15. Bd2 {[%emt 0:00:02]} Nf6 {[%emt 0:00:05]} 16. Rc1 {[%emt 0:00:05]} Ne4 {[%emt 0:00:04]} 17. c4 {[%emt 0:00:03]} dxc4 {[%emt 0:00:05]} 18. Rxc4 {[%emt 0:00:04]} Ne7 {[%emt 0:00:01]} 19. Re1 {[%emt 0:00:12]} Bc6 {[%emt 0:00:04]} 20. Nc5 {[%emt 0:00:12]} Bd5 {[%emt 0:00:07]} 21. Rc1 {[%emt 0:00:05]} Rd8 {[%emt 0:00:47]} (21... Bxa2 22. b3 (22. Nxe4 fxe4 23. Rxe4 Bd5 $11) (22. Nxb7 Bd5 $14) 22... Bxc5 23. dxc5 $16) 22. Nd3 {[%emt 0:00:06]} Nc6 {[%emt 0:00:18][%cal Og7g5]} 23. Bf4 {[%emt 0:00:07]} Bb4 {[%emt 0:00:14]} (23... Bxa2 $15 24. b3 Bxf4 25. Nxf4 e5) 24. Re2 {[%emt 0:00:26][%cal Oc1c6] Strongly threatening Rxc6!.} a5 {[%emt 0:00:10]} (24... Bxa2 $2 25. Rxc6 bxc6 26. Nxb4 $18) 25. a3 {[%emt 0:00:02]} Be7 {[%emt 0:00:03]} 26. Nde5 {[%emt 0:00:09]} Bf6 {[%emt 0:00:04]} 27. Nxc6 {[%emt 0:00:03]} Bxc6 {[%emt 0:00:01]} 28. Be5 {[%emt 0:00:03]} Bd5 {[%emt 0:00:05]} 29. Bxf6 {[%emt 0:00:05]} Nxf6 {[%emt 0:00:04]} 30. Ne5 {[%emt 0:00:09]} Bxg2 {[%emt 0:00:01]} 31. Kxg2 {[%emt 0:00:01]} Qb5 {[%emt 0:00:03]} 32. Nf3 {[%emt 0:00:15]} Ne4 {[%emt 0:00:08]} 33. Rec2 {[%emt 0:00:14]} Rd7 {[%emt 0:00:04]} 34. Qf1 {[%emt 0:00:04]} Qd5 {[%emt 0:00:01]} 35. Qc4 {[%emt 0:00:03]} Rfd8 {[%emt 0:00:04]} 36. Qxd5 {[%emt 0:00:01]} Rxd5 {[%emt 0:00:00]} 37. Rc7 {[%emt 0:00:03]} R5d7 {[%emt 0:00:03]} 38. Ne5 {[%emt 0:00:07]} Rxc7 {[%emt 0:00:01]} (38... Rxd4 {with more complications.} 39. Rxb7 Rd2 40. Kf3 Rxf2+ 41. Ke3 Kh7) 39. Rxc7 {[%emt 0:00:02]} Rxd4 $15 {[%emt 0:00:02][%mdl 4096] Endgame KRN-KRN. Black is a pawn up.} 40. Rc8+ {[%emt 0:00:11]} (40. Nf3 $11 {keeps the balance.} Rd5 41. Rxb7) 40... Kh7 $17 {[%emt 0:00:01] and ...Rd2 should not be overlooked} 41. h4 {[%emt 0:00:01] [#]} (41. Rc2 $142) 41... h5 {[%emt 0:00:14]} ({Don't do} 41... Rd2 42. h5 Nf6 (42... Rxb2 $2 {loses.} 43. Ng6 $18) (42... Rxf2+ 43. Kg1 $11) 43. Rb8 $15) (41... Rd5 $142 $1 {[%cal Rd5e5]} 42. Nc4 a4) 42. Nf3 {[%emt 0:00:02]} Rd1 {[%emt 0:00:00]} ({Black should play} 42... Rd3 $17 43. Re8 Rb3 44. Rxe6 Rxb2 45. Ng5+ Nxg5 46. hxg5 a4) 43. Rc7 {[%emt 0:00:02]} b5 {[%emt 0:00:00]} 44. Rb7 {[%emt 0:00:03]} Rd5 {[%emt 0:00:00]} 45. Re7 {[%emt 0:00:01]} (45. Rb6 $11) 45... Rd6 {[%emt 0:00:00]} 46. Rb7 {[%emt 0:00:01]} Rd5 {[%emt 0:00:00]} 47. Re7 {[%emt 0:00:04]} Rd6 {[%emt 0:00:05]} 48. Rb7 {[%emt 0:00:01]} Rd5 {[%emt 0:00:03]} 1/2-1/2

[Event "European Women Blitz-ch 2024"]
[Site "Monaco"]
[Date "2025.01.10"]
[Round "8.4"]
[White "Roebers, Eline"]
[Black "Kulon, Klaudia"]
[Result "1/2-1/2"]
[Annotator "TA"]
[ECO "C28"]
[WhiteElo "2381"]
[BlackElo "2393"]
[PlyCount "186"]
[EventDate "2025.01.06"]
[EventType "swiss"]
[EventCountry "MNC"]
[SourceTitle "playchess.com"]
[Source "ChessBase"]
[SourceQuality "1"]
[TimeControl "180+2"]

{[%evp 12,186,20,2,12,-6,14,17,26,0,0,0,8,-23,-10,-21,0,-26,16,-55,-56,-45,-41,-90,-85,-133,-59,-72,-14,-35,-40,-40,-43,-45,-33,-27,-40,-28,-34,-74,-48,-53,-45,-75,-70,-58,-66,-60,-47,-68,-68,-78,-78,-78,-78,-78,-78,-78,-78,-78,-78,-91,-83,-81,-59,-65,-66,-70,-58,-76,-59,-72,-29,-29,-35,-32,-23,-23,-32,-178,-178,-29988,-178,-178,-178,-178,-178,-179,-179,-179,-179,-179,-178,-178,-178,-178,-93,-93,-93,-81,-93,-94,-94,-149,-149,-149,-149,-181,-181,-181,-181,-181,-181,-181,-181,-181,-181,-181,-181,-181,-181,-181,-181,-181,-181,-181,-167,-181,-167,-167,-119,-181,0,-87,0,-181,-181,-181,-181,-181,-181,-181,-181,-181,-54,-141,-141,-141,-76,-156,-156,-156,-156,-156,-156,-156,-156,-156,-156,-156,-156,-156,-156,-156,-93,-93,-95,-156,-156,-156,-63,-156,-156,-156,0,-156,0]} 1. e4 {[%emt 0:00:01]} e5 {[%emt 0:00:01]} 2. Nc3 {[%emt 0:00:00]} Nc6 {[%emt 0:00:00]} 3. Bc4 {[%emt 0:00:02]} Nf6 {[%emt 0:00:03]} 4. d3 {[%emt 0:00:01]} Na5 {[%emt 0:00:01]} 5. Bb3 {[%emt 0:00:01]} Nxb3 {[%emt 0:00:01]} 6. axb3 {[%emt 0:00:01]} d5 {[%emt 0:00:06]} 7. exd5 {[%emt 0:00:05]} Nxd5 {[%emt 0:00:02]} 8. Nge2 {[%emt 0:00:04]} Nf6 {[%emt 0:00:08]} 9. O-O {[%emt 0:00:03]} Be7 {[%emt 0:00:03]} 10. f4 {[%emt 0:00:13]} exf4 {[%emt 0:00:02]} 11. Bxf4 {[%emt 0:00:01]} O-O {[%emt 0:00:02]} 12. d4 {[%emt 0:00:12]} c6 {[%emt 0:00:07]} 13. Qd3 {[%emt 0:00:06]} Be6 {[%emt 0:00:12]} 14. Ng3 {[%emt 0:00:07]} Qd7 {[%emt 0:00:03]} 15. Nce4 {[%emt 0:00:21]} (15. Bg5 $11) 15... Nxe4 $15 {[%emt 0:00:04]} 16. Nxe4 {[%emt 0:00:01]} Bf5 {[%emt 0:00:04]} 17. Be5 {[%emt 0:00:06]} (17. Bg3 $15) 17... Bg6 $17 {[%emt 0:00:03]} 18. Rae1 {[%emt 0:00:46]} (18. Rfe1 $142) 18... Kh8 {[%emt 0:00:04]} (18... Rad8 $17 {And now ...f6 would win.} 19. c3 c5) 19. Qc4 {[%emt 0:00:05]} b5 {[%emt 0:00:17]} (19... b6 $17) 20. Qc3 {[%emt 0:00:09]} f6 {[%emt 0:00:05]} 21. Bg3 {[%emt 0:00:11]} Rad8 {[%emt 0:00:02]} 22. Bf2 {[%emt 0:00:10]} Rfe8 {[%emt 0:00:05]} 23. Nc5 {[%emt 0:00:03]} Bxc5 {[%emt 0:00:10]} 24. Qxc5 {[%emt 0:00:01]} h6 {[%emt 0:00:07]} 25. c3 {[%emt 0:00:05]} Be4 {[%emt 0:00:13]} 26. Qh5 {[%emt 0:00:09]} Bd5 {[%emt 0:00:06]} 27. b4 {[%emt 0:00:04]} Bc4 {[%emt 0:00:16]} 28. Rxe8+ {[%emt 0:00:02]} Rxe8 {[%emt 0:00:01]} 29. Re1 {[%emt 0:00:08] Dodges Be2} Re6 {[%emt 0:00:02]} 30. Rxe6 {[%emt 0:00:14]} Qxe6 $15 {[%emt 0:00:00][%mdl 4096] Endgame KQB-KQB} 31. Qf3 {[%emt 0:00:01]} Bd5 {[%emt 0:00:05]} 32. Qe3 {[%emt 0:00:05]} Qg4 {[%emt 0:00:02][%csl Gd5][%cal Rg4g2]} 33. Bg3 {[%emt 0:00:03]} Qd1+ {[%emt 0:00:03]} 34. Be1 {[%emt 0:00:00]} Qc2 {[%emt 0:00:04][%csl Gd5][%cal Rc2g2]} 35. Qf2 {[%emt 0:00:01]} Qe4 {[%emt 0:00:02]} 36. Bd2 {[%emt 0:00:02]} Kh7 {[%emt 0:00:04]} 37. h3 {[%emt 0:00:09]} Qc2 {[%emt 0:00:17]} 38. Be3 {[%emt 0:00:04]} Qb1+ {[%emt 0:00:04]} 39. Kh2 {[%emt 0:00:00]} Qe4 {[%emt 0:00:01]} 40. Bf4 $1 {[%emt 0:00:02]} a6 {[%emt 0:00:05]} (40... g5 $5 41. Bc7 Kg6 $15) 41. Bd6 {[%emt 0:00:03]} h5 {[%emt 0:00:08][%cal Bh6h5,Bh5h4,Bh4h3][%mdl 32]} (41... g5 $5) 42. h4 {[%emt 0:00:12]} g5 {[%emt 0:00:09]} 43. hxg5 {[%emt 0:00:02]} fxg5 {[%emt 0:00:00]} 44. Be5 {[%emt 0:00:01]} h4 {[%emt 0:00:10]} 45. Kg1 {[%emt 0:00:04]} (45. b3 $15 Qg6 (45... Bxb3 $2 46. Qf6 $18) 46. c4 bxc4 47. bxc4 Bxc4 48. Qf8) 45... h3 $1 $19 {[%emt 0:00:07][%cal Rh3g2]} 46. Qg3 $2 {[%emt 0:00:07]} (46. Qf3 $19 Qxf3 (46... hxg2 47. Qh5+ Kg8 48. Qe8+ Kh7 49. Qh5+ Kg8 50. Qe8+ Kh7 51. Qh5+ $11) 47. gxf3) 46... Qxg2+ $2 {[%emt 0:00:02]} (46... hxg2 {mates} 47. Kh2 Qe2 48. Qxg5 g1=Q+ 49. Kxg1 Qe1+ 50. Kh2 Qf2+ 51. Kh3 Be6+ (51... Qxb2 52. Qg7#) 52. Qg4 Qf3+ (52... Bxg4+ $2 53. Kxg4 Kg6 54. Bc7 $19) 53. Kh2 Bxg4 (53... Qxg4 54. Bd6 Bd5 55. Bg3 Qe2+ 56. Kh3 Be6+ 57. Kh4 Qg4#) 54. Bg3 Qe2+ 55. Kg1 Bh3 (55... Qxb2 56. Bf2 Qxc3 57. Bg3 Qxg3+ 58. Kf1 Bf3 59. d5 Qg2+ 60. Ke1 Qe2#) 56. Bf2 Qf1+ 57. Kh2 Qg2#) 47. Qxg2 {[%emt 0:00:01]} Bxg2 {[%emt 0:00:04] KB-KB. Black is a pawn up.} (47... hxg2 48. b3) 48. Kf2 {[%emt 0:00:00]} Kg6 {[%emt 0:00:01]} 49. Ke3 {[%emt 0:00:02]} Kf5 {[%emt 0:00:01]} 50. Bd6 {[%emt 0:00:02]} Bd5 {[%emt 0:00:02]} 51. Bh2 {[%emt 0:00:04]} Kg4 {[%emt 0:00:02]} 52. Bc7 {[%emt 0:00:02]} Kh4 {[%emt 0:00:01]} 53. Bh2 {[%emt 0:00:02]} g4 {[%emt 0:00:01]} (53... Bg2 $19 54. Kf2 Kg4) 54. Kf4 $17 {[%emt 0:00:02]} Bf3 {[%emt 0:00:03]} 55. Bg3+ {[%emt 0:00:01]} Kh5 {[%emt 0:00:01]} 56. Kf5 {[%emt 0:00:01]} Bd1 {[%emt 0:00:05]} 57. Kf4 {[%emt 0:00:06]} (57. Bh2 $142) 57... Kg6 $1 {[%emt 0:00:01]} 58. Bh2 {[%emt 0:00:03]} Kf6 {[%emt 0:00:01]} 59. Bg3 {[%emt 0:00:01]} Ke6 {[%emt 0:00:01]} 60. Ke3 {[%emt 0:00:02]} Kd5 {[%emt 0:00:02]} 61. Bh2 {[%emt 0:00:01]} Kc4 {[%emt 0:00:01]} 62. Kd2 {[%emt 0:00:01]} Bf3 {[%emt 0:00:01]} 63. Bg3 {[%emt 0:00:01]} Be4 {[%emt 0:00:02]} 64. Bh2 {[%emt 0:00:01]} Kb3 {[%emt 0:00:09]} 65. Kc1 {[%emt 0:00:01]} Bf5 {[%emt 0:00:01]} 66. Bg3 {[%emt 0:00:00]} Kc4 {[%emt 0:00:04] ( -> ...Kd3)} 67. Kd2 {[%emt 0:00:01]} Kd5 {[%emt 0:00:06]} 68. Ke3 {[%emt 0:00:00]} Be4 {[%emt 0:00:02]} 69. Bh2 {[%emt 0:00:01]} Bf3 {[%emt 0:00:00]} 70. Bg3 {[%emt 0:00:01]} Ke6 $1 {[%emt 0:00:04]} 71. Kf4 {[%emt 0:00:02]} (71. Bh2 $17 {was worth a try.}) 71... Kd5 {[%emt 0:00:05]} (71... Kd6 $1 $19 72. Kf5+ Kd5) 72. Ke3 $1 {[%emt 0:00:01]} Kc4 {[%emt 0:00:04]} (72... Bg2 $17 73. b3 Bf3) 73. Kd2 $1 $19 {[%emt 0:00:00]} Bg2 {[%emt 0:00:02]} 74. Bh2 {[%emt 0:00:02]} Be4 {[%emt 0:00:01]} 75. Bg3 {[%emt 0:00:00]} Kb3 {[%emt 0:00:06]} 76. Kc1 {[%emt 0:00:01]} Ka4 {[%emt 0:00:01]} 77. Kd2 {[%emt 0:00:05]} a5 {[%emt 0:00:05]} (77... Bf5 $19 78. Kd1 Kb3) 78. bxa5 {[%emt 0:00:01]} (78. b3+ $1 $15 Kxb3 79. bxa5) 78... Kxa5 $17 {[%emt 0:00:01]} 79. b3 {[%emt 0:00:04]} Bd5 {[%emt 0:00:04]} (79... b4 $142 80. Bc7+ Kb5 81. c4+ Ka6) 80. b4+ {[%emt 0:00:06]} (80. Bc7+ $142 Ka6 81. b4) 80... Ka4 {[%emt 0:00:00]} 81. Bh2 {[%emt 0:00:01]} Kb3 {[%emt 0:00:01]} 82. Bg3 {[%emt 0:00:01]} Bf3 {[%emt 0:00:02]} 83. Bh2 {[%emt 0:00:01]} Kc4 {[%emt 0:00:01]} 84. Bg3 {[%emt 0:00:01]} Kd5 {[%emt 0:00:03]} 85. Ke3 {[%emt 0:00:01]} Ke6 {[%emt 0:00:05]} 86. Kf4 {[%emt 0:00:03]} Kf6 {[%emt 0:00:02]} 87. Bh2 {[%emt 0:00:03]} Kg6 {[%emt 0:00:01]} (87... Bd1 $142 88. Kg3 Ke6) 88. Bg3 {[%emt 0:00:01]} Bd1 {[%emt 0:00:01]} 89. Bh2 {[%emt 0:00:01]} (89. Ke5 $142) 89... Kf6 {[%emt 0:00:03]} 90. Bg3 {[%emt 0:00:02] [#]} Ke6 {[%emt 0:00:01]} (90... Be2 $1 $17 91. d5 cxd5) 91. Bh2 {[%emt 0:00:02]} (91. Ke4 $1 $15) 91... Kd5 {[%emt 0:00:01]} 92. Ke3 {[%emt 0:00:00]} Ke6 {[%emt 0:00:01]} 93. Kf4 $1 {[%emt 0:00:01] [#]} Kd5 $2 {[%emt 0:00:28]} ({Black should play} 93... Be2 $1 $17 94. Kg3 Kd5) 1/2-1/2